{"text_format":"1","workbook":"xlsx","n_sheets":5,"sheets":["1","2","end","RATE","SPEC"],"not_rendered":{"charts":0,"images":0,"macros":1,"external_links":0,"defined_names":1,"comments":0,"pivot_tables":0},"unopened":[],"bounds":{"document_bytes":16777216,"sheet_cells":100000,"rows_first":2000,"rows_last":500,"rows_between":2000,"halvings":0,"cell_chars":16384,"cell_head_chars":4096},"cells_cut":0,"cells_raw":0,"read":"whole","date_system":"1900"}

{"sheet":"1","index":0,"n_rows":107,"n_cols":9,"rows_kept":107,"cut":false,"hidden":false,"merged":[]}
[]
[]
[]
[null,null,null,null,"USD","Курс USD ЦБ РФ",{"$f":"VLOOKUP(E4,RATE!B:E,4,FALSE)","v":74.638199999999998}]
[null,"Расчет",null,null,"EUR","Курс EUR ЦБ РФ",{"$f":"VLOOKUP(E5,RATE!B:E,4,FALSE)","v":88.744799999999998}]
["Start","Артикул","Наименование","Ед. изм.","Кол-во","Цена вход, руб без НДС","Сумма вход, руб без НДС","Шифр / Примечание","Произв / Пост"]
[1,"51116","Держатель двухкомпонентный, д.16мм","упак",1,100,{"$f":"E7*F7","v":100},"ПР.М.444445","Dkc"]
[2,"plc-fl-ctsw-2.5x200","Хомут P6.6 стандартный (б), 2.5x200 (100шт) FlexLock PROxima","шт",100,{"$f":"30/100","v":0.3},30,"ПР.М.444445","Ekf"]
[3,"plc-pg-25","Сальник PG25 IP54 (100 шт) d отв. 30 мм / d провод. 16-21 мм EKF PROxima","шт",10,45,450,"ПР.М.444445","Ekf"]
[4,47482,"Нак-к кольцевой НКИ 6,0- 6 (КВТ)","шт",20,5,100,"ПР.М.444445","КВТ"]
[5,"MBS 10.10.06","Коробка распределительная","шт",4,800,3200,"ПР.М.444445","Provento"]
[6,3981280,"VM фланцы с отв. д/ручек 6U, 2 шт","упак",1,20000,20000,"ПР.М.444445","Rittal"]
[7,"22138DEK","Контактор 65А 220В АС3 1НО+1НЗ КМ-103 DEKraft","шт",5,1600,8000,"ПР.М.444445","Schneider"]
[8,null,null,null,null,null,0]
[9,null,null,null,null,null,0]
[10,null,null,null,null,null,0]
[11,null,null,null,null,null,0]
[12,null,null,null,null,null,0]
[13,null,null,null,null,null,0]
[14,null,null,null,null,null,0]
[15,null,null,null,null,null,0]
[16,null,null,null,null,null,0]
[17,null,null,null,null,null,0]
[18,null,null,null,null,null,0]
[19,null,null,null,null,null,0]
[20,null,null,null,null,null,{"$f":"E26*F26","v":0}]
[21,null,null,null,null,null,0]
[22,null,null,null,null,null,0]
[23,null,null,null,null,null,0]
[24,null,null,null,null,null,0]
[25,null,null,null,null,null,0]
[26,null,null,null,null,null,0]
[27,null,null,null,null,null,0]
[28,null,null,null,null,null,0]
[29,null,null,null,null,null,0]
[30,null,null,null,null,null,0]
[31,null,null,null,null,null,0]
[32,null,null,null,null,null,0]
[33,null,null,null,null,null,0]
[34,null,null,null,null,null,0]
[35,null,null,null,null,null,0]
[36,null,null,null,null,null,0]
[37,null,null,null,null,null,0]
[38,null,null,null,null,null,0]
[39,null,null,null,null,null,0]
[40,null,null,null,null,null,0]
[41,null,null,null,null,null,0]
[42,null,null,null,null,null,0]
[43,null,null,null,null,null,0]
[44,null,null,null,null,null,0]
[45,null,null,null,null,null,0]
[46,null,null,null,null,null,0]
[47,null,null,null,null,null,0]
[48,null,null,null,null,null,0]
[49,null,null,null,null,null,0]
[50,null,null,null,null,null,0]
[51,null,null,null,null,null,0]
[52,null,null,null,null,null,0]
[53,null,null,null,null,null,0]
[54,null,null,null,null,null,0]
[55,null,null,null,null,null,0]
[56,null,null,null,null,null,0]
[57,null,null,null,null,null,0]
[58,null,null,null,null,null,0]
[59,null,null,null,null,null,0]
[60,null,null,null,null,null,0]
[61,null,null,null,null,null,0]
[62,null,null,null,null,null,0]
[63,null,null,null,null,null,0]
[64,null,null,null,null,null,0]
[65,null,null,null,null,null,0]
[66,null,null,null,null,null,{"$f":"E72*F72","v":0}]
[67,null,null,null,null,null,0]
[68,null,null,null,null,null,0]
[69,null,null,null,null,null,0]
[70,null,null,null,null,null,0]
[71,null,null,null,null,null,0]
[72,null,null,null,null,null,0]
[73,null,null,null,null,null,0]
[74,null,null,null,null,null,0]
[75,null,null,null,null,null,0]
[76,null,null,null,null,null,0]
[77,null,null,null,null,null,0]
[78,null,null,null,null,null,0]
[79,null,null,null,null,null,0]
[80,null,null,null,null,null,0]
[81,null,null,null,null,null,0]
[82,null,null,null,null,null,0]
[83,null,null,null,null,null,0]
[84,null,null,null,null,null,0]
[85,null,null,null,null,null,0]
[86,null,null,null,null,null,0]
[87,null,null,null,null,null,0]
[88,null,null,null,null,null,0]
[89,null,null,null,null,null,0]
[90,null,null,null,null,null,0]
[91,null,null,null,null,null,0]
[92,null,null,null,null,null,0]
[93,null,null,null,null,null,0]
[94,null,null,null,null,null,0]
[95,null,null,null,null,null,0]
[96,null,null,null,null,null,0]
[97,null,null,null,null,null,0]
[98,null,null,null,null,null,0]
[99,null,null,null,null,null,0]
[100,null,null,null,null,null,0]
["End",null,"ИТОГО",null,null,null,{"$f":"SUM(G7:G106)","v":31880}]

{"sheet":"2","index":1,"n_rows":107,"n_cols":9,"rows_kept":107,"cut":false,"hidden":false,"merged":[]}
[]
[]
[]
[null,null,null,null,"USD","Курс USD ЦБ РФ",{"$f":"VLOOKUP(E4,RATE!B:E,4,FALSE)","v":74.638199999999998}]
[null,"Расчет",null,null,"EUR","Курс EUR ЦБ РФ",{"$f":"VLOOKUP(E5,RATE!B:E,4,FALSE)","v":88.744799999999998}]
["Start","Артикул","Наименование","Ед. изм.","Кол-во","Цена вход, руб без НДС","Сумма вход, руб без НДС","Шифр / Примечание","Произв / Пост"]
[1,"51116","Держатель двухкомпонентный, д.16мм","шт",30,10,{"$f":"E7*F7","v":300},"ПР.М.55555","Dkc"]
[2,"plc-fl-ctsw-2.5x200","Хомут P6.6 стандартный (б), 2.5x200 (100шт) FlexLock PROxima","упак",15,30,450,"ПР.М.55555","Ekf"]
[3,"plc-pg-25","Сальник PG25 IP54 (100 шт) d отв. 30 мм / d провод. 16-21 мм EKF PROxima","шт",10,45,450,"ПР.М.55555","Ekf"]
[4,47482,"Нак-к кольцевой НКИ 6,0- 6 (КВТ)","шт",20,5,100,"ПР.М.55555","КВТ"]
[5,null,null,null,null,null,{"$f":"E11*F11","v":0}]
[6,null,null,null,null,null,0]
[7,null,null,null,null,null,0]
[8,null,null,null,null,null,0]
[9,null,null,null,null,null,0]
[10,null,null,null,null,null,0]
[11,null,null,null,null,null,0]
[12,null,null,null,null,null,0]
[13,null,null,null,null,null,0]
[14,null,null,null,null,null,0]
[15,null,null,null,null,null,0]
[16,null,null,null,null,null,0]
[17,null,null,null,null,null,0]
[18,null,null,null,null,null,0]
[19,null,null,null,null,null,0]
[20,null,null,null,null,null,0]
[21,null,null,null,null,null,0]
[22,null,null,null,null,null,0]
[23,null,null,null,null,null,0]
[24,null,null,null,null,null,0]
[25,null,null,null,null,null,0]
[26,null,null,null,null,null,0]
[27,null,null,null,null,null,0]
[28,null,null,null,null,null,0]
[29,null,null,null,null,null,0]
[30,null,null,null,null,null,0]
[31,null,null,null,null,null,0]
[32,null,null,null,null,null,0]
[33,null,null,null,null,null,0]
[34,null,null,null,null,null,0]
[35,null,null,null,null,null,0]
[36,null,null,null,null,null,0]
[37,null,null,null,null,null,0]
[38,null,null,null,null,null,0]
[39,null,null,null,null,null,0]
[40,null,null,null,null,null,0]
[41,null,null,null,null,null,0]
[42,null,null,null,null,null,0]
[43,null,null,null,null,null,0]
[44,null,null,null,null,null,0]
[45,null,null,null,null,null,0]
[46,null,null,null,null,null,0]
[47,null,null,null,null,null,0]
[48,null,null,null,null,null,0]
[49,null,null,null,null,null,0]
[50,null,null,null,null,null,0]
[51,null,null,null,null,null,0]
[52,null,null,null,null,null,0]
[53,null,null,null,null,null,0]
[54,null,null,null,null,null,0]
[55,null,null,null,null,null,0]
[56,null,null,null,null,null,0]
[57,null,null,null,null,null,0]
[58,null,null,null,null,null,0]
[59,null,null,null,null,null,0]
[60,null,null,null,null,null,0]
[61,null,null,null,null,null,0]
[62,null,null,null,null,null,0]
[63,null,null,null,null,null,0]
[64,null,null,null,null,null,0]
[65,null,null,null,null,null,0]
[66,null,null,null,null,null,{"$f":"E72*F72","v":0}]
[67,null,null,null,null,null,0]
[68,null,null,null,null,null,0]
[69,null,null,null,null,null,0]
[70,null,null,null,null,null,0]
[71,null,null,null,null,null,0]
[72,null,null,null,null,null,0]
[73,null,null,null,null,null,0]
[74,null,null,null,null,null,0]
[75,null,null,null,null,null,0]
[76,null,null,null,null,null,0]
[77,null,null,null,null,null,0]
[78,null,null,null,null,null,0]
[79,null,null,null,null,null,0]
[80,null,null,null,null,null,0]
[81,null,null,null,null,null,0]
[82,null,null,null,null,null,0]
[83,null,null,null,null,null,0]
[84,null,null,null,null,null,0]
[85,null,null,null,null,null,0]
[86,null,null,null,null,null,0]
[87,null,null,null,null,null,0]
[88,null,null,null,null,null,0]
[89,null,null,null,null,null,0]
[90,null,null,null,null,null,0]
[91,null,null,null,null,null,0]
[92,null,null,null,null,null,0]
[93,null,null,null,null,null,0]
[94,null,null,null,null,null,{"$f":"E100*F100","v":0}]
[95,null,null,null,null,null,0]
[96,null,null,null,null,null,0]
[97,null,null,null,null,null,0]
[98,null,null,null,null,null,0]
[99,null,null,null,null,null,0]
[100,null,null,null,null,null,0]
["End",null,"ИТОГО",null,null,null,{"$f":"SUM(G7:G106)","v":1300}]

{"sheet":"end","index":2,"n_rows":0,"n_cols":0,"rows_kept":0,"cut":false,"hidden":false,"merged":[]}

{"sheet":"RATE","index":3,"n_rows":89,"n_cols":5,"rows_kept":89,"cut":false,"hidden":false,"merged":[]}
["cbr"]
[]
["ул. Неглинная, 12, Москва, 107016"]
["8 800 300-30-00"]
["www.cbr.ru"]
[]
["Поиск по сайту "]
["Интернет-приемная"]
["RU"]
["EN"]
["Поиск по сайту "]
["Интернет-приемная"]
["RU"]
["EN"]
["Что вы хотите найти?"]
["Искать"]
["Деятельность Документы и данные О Банке России Сервисы"]
["Коронавирус: поддержка экономики, бизнеса, граждан"]
["+"]
["7 499 300-30-008 800 300-30-00300Бесплатно для звонков с мобильных телефонов"]
["Новости Решения Банка России Контактная информация Карта сайта О сайте"]
["Базы данных"]
["База данных по курсам валют"]
[]
["Официальные курсы валют на заданную дату, устанавливаемые ежедневно"]
[]
["2020-08-29"]
[]
["Центральный банк Российской Федерации установил с 29.08.2020 следующие курсы иностранных валют к рублю Российской Федерации без обязательств Банка России покупать или продавать указанные валюты по данному курсу"]
[]
["Цифр. код","Букв. код","Единиц","Валюта","Курс"]
[36,"AUD",1,"Австралийский доллар",54.590400000000002]
[944,"AZN",1,"Азербайджанский манат",43.930700000000002]
[51,"AMD",100,"Армянских драмов",15.3324]
[933,"BYN",1,"Белорусский рубль",28.0215]
[975,"BGN",1,"Болгарский лев",45.444600000000001]
[986,"BRL",1,"Бразильский реал",13.399800000000001]
[348,"HUF",100,"Венгерских форинтов",24.9359]
[410,"KRW",1000,"Вон Республики Корея",63.028100000000002]
[344,"HKD",10,"Гонконгских долларов",96.306100000000001]
[208,"DKK",1,"Датская крона",11.9412]
[840,"USD",1,"Доллар США",74.638199999999998]
[978,"EUR",1,"Евро",88.744799999999998]
[356,"INR",10,"Индийских рупий",10.166700000000001]
[398,"KZT",100,"Казахстанских тенге",17.756599999999999]
[124,"CAD",1,"Канадский доллар",57.054099999999998]
[417,"KGS",100,"Киргизских сомов",95.123999999999995]
[156,"CNY",1,"Китайский юань",10.8713]
[498,"MDL",10,"Молдавских леев",44.973599999999998]
[934,"TMT",1,"Новый туркменский манат",21.355699999999999]
[578,"NOK",10,"Норвежских крон",84.6785]
[985,"PLN",1,"Польский злотый",20.1736]
[946,"RON",1,"Румынский лей",18.358899999999998]
[960,"XDR",1,"СДР (специальные права заимствования)",105.413]
[702,"SGD",1,"Сингапурский доллар",54.848799999999997]
[972,"TJS",10,"Таджикских сомони",72.341399999999993]
[949,"TRY",1,"Турецкая лира",10.1731]
[860,"UZS",10000,"Узбекских сумов",72.598200000000006]
[980,"UAH",10,"Украинских гривен",27.148099999999999]
[826,"GBP",1,"Фунт стерлингов Соединенного королевства",99.097099999999998]
[203,"CZK",10,"Чешских крон",33.841799999999999]
[752,"SEK",10,"Шведских крон",86.404799999999994]
[756,"CHF",1,"Швейцарский франк",82.655799999999999]
[710,"ZAR",10,"Южноафриканских рэндов",44.315899999999999]
[392,"JPY",100,"Японских иен",70.430000000000007]
["Страница была полезной?"]
["Да Нет"]
["Последнее обновление страницы: 28.08.2020"]
["Наверх"]
["ул. Неглинная, 12, Москва, 107016"]
["8 800 300-30-00(круглосуточно, бесплатно для звонков из регионов России)"]
["+7 499 300-30-00(круглосуточно, в соответствии с тарифами вашего оператора)"]
["300(круглосуточно, бесплатно для звонков с мобильных телефонов)"]
["Личный кабинет участников рынка"]
["Отношения с инвесторами"]
["Перечень инсайдерской информации Банка России"]
["Официальное опубликование нормативных актов Банка России"]
["Проекты нормативных актов Банка России"]
["Перечень нерабочих праздничных дней и перенесенных выходных дней"]
["О сайте"]
["Контакты"]
["Противодействие коррупции"]
["Технические ресурсы"]
["Версия для слабовидящихОбычная версия"]
["© Банк России, 2000–2020."]
["Дизайн сайта — "]
["На сайте Банка России используются файлы cookie"]
["Оставаясь на www.cbr.ru, вы принимаете пользовательское соглашение"]
["Подтвердить"]

{"sheet":"SPEC","index":4,"n_rows":25,"n_cols":9,"rows_kept":25,"cut":false,"hidden":false,"merged":[]}
[]
[]
[]
[null,null,null,null,"USD","Курс USD ЦБ РФ",{"$f":"VLOOKUP(E4,RATE!B:E,4,FALSE)","v":74.638199999999998}]
[null,"Расчет",null,null,"EUR","Курс EUR ЦБ РФ",{"$f":"VLOOKUP(E5,RATE!B:E,4,FALSE)","v":88.744799999999998}]
["№","Артикул","Наименование","Ед. изм.","Кол-во","Цена вход, руб без НДС","Сумма вход, руб без НДС","Шифр / Примечание","Произв / Пост"]
[1,"51116","Держатель двухкомпонентный, д.16мм","упак",1,100,{"$f":"E7*F7","v":100},"ПР.М.444445","Dkc"]
[2,"plc-fl-ctsw-2.5x200","Хомут P6.6 стандартный (б), 2.5x200 (100шт) FlexLock PROxima","шт",100,{"$f":"30/100","v":0.3},30,"ПР.М.444445","Ekf"]
[3,"plc-pg-25","Сальник PG25 IP54 (100 шт) d отв. 30 мм / d провод. 16-21 мм EKF PROxima","шт",10,45,450,"ПР.М.444445","Ekf"]
[4,47482,"Нак-к кольцевой НКИ 6,0- 6 (КВТ)","шт",20,5,100,"ПР.М.444445","КВТ"]
[5,"MBS 10.10.06","Коробка распределительная","шт",4,800,3200,"ПР.М.444445","Provento"]
[6,3981280,"VM фланцы с отв. д/ручек 6U, 2 шт","упак",1,20000,20000,"ПР.М.444445","Rittal"]
[7,"22138DEK","Контактор 65А 220В АС3 1НО+1НЗ КМ-103 DEKraft","шт",5,1600,8000,"ПР.М.444445","Schneider"]
[8,"51116","Держатель двухкомпонентный, д.16мм","шт",30,10,300,"ПР.М.55555","Dkc"]
[9,"plc-fl-ctsw-2.5x200","Хомут P6.6 стандартный (б), 2.5x200 (100шт) FlexLock PROxima","упак",15,30,450,"ПР.М.55555","Ekf"]
[10,"plc-pg-25","Сальник PG25 IP54 (100 шт) d отв. 30 мм / d провод. 16-21 мм EKF PROxima","шт",10,45,450,"ПР.М.55555","Ekf"]
[11,47482,"Нак-к кольцевой НКИ 6,0- 6 (КВТ)","шт",20,5,100,"ПР.М.55555","КВТ"]
[]
[]
[]
[null,"Повтор"]
[null,"51116"]
[null,"plc-fl-ctsw-2.5x200"]
[null,"plc-pg-25"]
[null,47482]